[Event "Cairns Cup 2024"]
[Site "Saint Louis"]
[Date "2024.06.13"]
[Round "1.5"]
[White "Muzychuk, Mariya"]
[Black "Zatonskih, Anna"]
[Result "1-0"]
[ECO "C11"]
[WhiteElo "2510"]
[BlackElo "2327"]
[Annotator "TA"]
[PlyCount "139"]
[EventDate "2024.06.13"]
[EventType "tourn"]
[EventCountry "USA"]
[SourceTitle "playchess.com"]
[Source "ChessBase"]
[SourceQuality "1"]
[TimeControl "40/5400+30:1800+30"]

{[%evp 56,139,-30,-81,-23,-60,0,0,0,0,0,-52,0,0,0,0,64,75,52,66,308,260,304,294,319,297,329,273,239,270,375,370,384,379,366,362,458,343,350,350,248,181,191,178,2079,927,2444,2435,5125,1327,3306,6672,29971,29973,29977,29967,5601,0,29977,29978,29978,29979,29979,29980,29980,29981,29981,29982,29982,29983,29983,29984,29984,29984,29984,29985,29986,29987,29987,29988,29988,29989,29989,0,29990,214]} 1. e4 {[%emt 0:00:00]} e6 {[%emt 0:00:00]} 2. d4 {[%emt 0:00:00]} d5 {[%emt 0:00:00]} 3. Nc3 {[%emt 0:00:00]} Nf6 {[%emt 0:00:00]} 4. e5 {[%emt 0:00:00]} Nfd7 {[%emt 0:00:00]} 5. f4 {[%emt 0:00:00]} c5 {[%emt 0:00:00]} 6. Nf3 {[%emt 0:00:00]} Nc6 {[%emt 0:00:00]} 7. Be3 {[%emt 0:00:00]} a6 {[%emt 0:00:00]} 8. a3 {[%emt 0:00:00]} b6 {[%emt 0:00:00] C11: French: Classical System: 4 e5 and 4 Bg5 dxe4.} 9. g3 {[%emt 0:00:00]} Be7 {[%emt 0:01:10]} 10. Bg2 {[%emt 0:00:00]} O-O {[%emt 0:02:37]} 11. O-O {[%emt 0:00:00]} Kh8 $146 {[%emt 0:07:11]} ({Predecessor:} 11... f5 12. h3 cxd4 13. Nxd4 Nxd4 14. Bxd4 Nc5 15. Kh2 Bd7 16. b4 Ne4 17. Nxe4 dxe4 {0-1 Rodriguez Guerrero,A (1425)-Mejia,D (1784) Managua Hurtado Memorial op 2021 (3)}) 12. Ne2 {[%emt 0:00:00]} Bb7 {[%emt 0:04:37]} 13. c3 {[%emt 0:00:00]} f5 {[%emt 0:13:45]} 14. exf6 {[%emt 0:00:00]} Nxf6 {[%emt 0:00:19]} 15. Bh3 {[%emt 0:01:06]} Qd6 {[%emt 0:06:42]} 16. Ng5 {[%emt 0:11:09]} Nd8 {[%emt 0:02:18]} 17. Nc1 {[%emt 0:01:07]} c4 {[%emt 0:07:08]} 18. Ne2 {[%emt 0:00:44]} Bc6 {[%emt 0:02:04]} 19. g4 {[%emt 0:03:45]} Nf7 {[%emt 0:02:39]} 20. Nxf7+ {[%emt 0:01:37]} Rxf7 {[%emt 0:00:16]} 21. Ng3 {[%emt 0:00:05]} Re8 {[%emt 0:23:50]} 22. Qc2 {[%emt 0:08:39]} Bd8 {[%emt 0:06:28]} 23. Rae1 {[%emt 0:02:05]} Bd7 {[%emt 0:02:19]} 24. Bc1 {[%emt 0:04:33]} Ref8 {[%emt 0:03:17]} 25. Re2 {[%emt 0:05:47]} Ng8 {[%emt 0:03:36]} 26. g5 {[%emt 0:14:09]} Ne7 {[%emt 0:00:28]} 27. Rfe1 {[%emt 0:00:11]} Ng6 {[%emt 0:03:21]} 28. Nh5 {[%emt 0:17:58]} Nh4 {[%emt 0:00:04]} (28... e5 $17 29. dxe5 Nxe5 30. Rxe5 (30. fxe5 $2 Bxh3 $17)) 29. Bg4 {[%emt 0:03:19]} (29. Rf1 $11) 29... b5 {[%emt 0:03:33]} ({Better is} 29... g6 $17 30. Nf6 (30. Rxe6 Bxe6 31. Rxe6 Qb8 $19) 30... Bxf6 31. gxf6 Rxf6) 30. Re5 {[%emt 0:05:39]} Ng6 {[%emt 0:00:59]} (30... g6 $15 31. Nf6 Bxf6 32. gxf6 Rxf6) 31. Rxe6 $11 {[%emt 0:01:47]} Bxe6 {[%emt 0:00:11]} 32. Rxe6 {[%emt 0:00:05]} Qd7 {[%emt 0:02:39]} 33. h3 {[%emt 0:02:22]} (33. Rxa6 $2 Qxg4+ 34. Ng3 Nxf4 35. Bxf4 Rxf4 $19) ({White should play} 33. Qg2 $11 Re7 34. Rxg6 (34. Rxa6 $2 Re1+ 35. Kf2 Qe8 $19)) 33... Qc7 {[%emt 0:01:43]} ({Black should try} 33... Nh4 $15) 34. Rxg6 {[%emt 0:04:43]} (34. Rxa6 Nxf4 35. Bxf4 Rxf4 36. Nxf4 Qxf4 $19) 34... hxg6 {[%emt 0:00:15]} 35. Qxg6 {[%emt 0:00:15]} Qe7 {[%emt 0:02:39]} (35... Re7 $11 36. Kf2 (36. Qxa6 $2 Re1+ 37. Kg2 Rxc1 $19) (36. Be6 $2 Qd6 $19) 36... Qb6 37. Qxb6 Bxb6) 36. Be6 $1 $14 {[%emt 0:02:40]} (36. Qxa6 $2 Qe1+ 37. Kg2 Qxc1 $19) 36... Qe8 {[%emt 0:00:13]} 37. f5 $1 {[%emt 0:03:20]} (37. Bxf7 Qxf7 38. Qxf7 Rxf7 $11) 37... Re7 $2 {[%emt 0:00:07]} (37... Rb7 $14 38. Nf4 (38. Bxd5 $2 Qxg6 39. fxg6 Re7 $19) 38... Bc7) 38. Nf4 $1 $18 {[%emt 0:00:43]} (38. Bxd5 $2 Re1+ (38... Qxg6 $2 39. fxg6 Re1+ 40. Kg2 $19) 39. Kh2 Qxg6 (39... Rxc1 40. Qxg7#) 40. fxg6 Rxc1 $19) 38... Rxe6 {[%emt 0:01:47]} 39. Qxe6 {[%emt 0:01:06]} ({Inferior is} 39. fxe6 Kg8 $14) 39... Qxe6 {[%emt 0:00:15]} 40. Nxe6 {[%emt 0:00:07]} (40. fxe6 Re8 41. h4 (41. Nxd5 Rxe6 42. Kf2 Rd6 $11) 41... Bc7 $16) 40... Re8 {[%emt 0:01:03]} 41. g6 {[%emt 0:32:05]} a5 {[%emt 0:30:36]} 42. Bf4 {[%emt 0:00:32]} Bf6 {[%emt 0:00:41]} 43. Bd6 {[%emt 0:03:23]} Kg8 {[%emt 0:00:15]} 44. Kf2 {[%emt 0:00:18]} Bh4+ {[%emt 0:00:25]} 45. Kf3 {[%emt 0:00:27]} Be1 {[%emt 0:00:32]} 46. Ke2 {[%emt 0:00:54]} Bh4 {[%emt 0:00:10]} 47. Be5 {[%emt 0:00:17]} Re7 {[%emt 0:00:19]} 48. Kd2 {[%emt 0:00:28]} Rb7 {[%emt 0:00:09]} 49. Kc2 {[%emt 0:01:12]} Bf6 $2 {[%emt 0:00:50]} (49... Ra7 50. Kd2 Rb7) 50. Bxf6 $18 {[%emt 0:01:22]} gxf6 {[%emt 0:00:01]} 51. h4 {[%emt 0:00:33]} b4 {[%emt 0:00:08]} 52. h5 {[%emt 0:02:00]} bxa3 {[%emt 0:00:02]} 53. bxa3 {[%emt 0:00:04]} Rd7 {[%emt 0:02:25]} 54. h6 {[%emt 0:00:58]} a4 {[%emt 0:00:25]} 55. Kd2 {[%emt 0:00:19]} Rb7 {[%emt 0:00:32]} 56. Kc2 {[%emt 0:00:46]} (56. Nf4 $18 Rb2+ 57. Ke3) 56... Rd7 $1 {[%emt 0:00:17]} 57. Nf4 {[%emt 0:00:17]} Rd6 {[%emt 0:00:29]} 58. Kd2 {[%emt 0:00:05]} Kh8 {[%emt 0:00:18]} 59. Ke3 {[%emt 0:00:13]} Kg8 {[%emt 0:00:11]} 60. Kf3 {[%emt 0:00:06]} Kh8 {[%emt 0:00:18]} 61. Kg4 {[%emt 0:00:12]} Kg8 {[%emt 0:00:15]} 62. Kh5 {[%emt 0:00:25]} Rd7 {[%emt 0:00:07]} 63. Ne6 {[%emt 0:00:21]} Ra7 {[%emt 0:00:51]} 64. Nd8 {[%emt 0:02:02]} Re7 {[%emt 0:01:28]} 65. h7+ {[%emt 0:02:02]} Kg7 {[%emt 0:00:16]} 66. Nf7 {[%emt 0:00:04]} Re8 {[%emt 0:00:06]} 67. h8=Q+ {[%emt 0:00:12]} Rxh8+ {[%emt 0:00:11]} 68. Nxh8 {[%emt 0:00:05]} Kxh8 {[%emt 0:00:06]} 69. Kh6 {[%emt 0:00:02]} Kg8 {[%emt 0:00:04]} 70. g7 {[%emt 0:00:04]} 1-0